bitfinex-derivatives/quotes_ETHF0:USTF0_20250606
["timestamp","ask_amount","ask_price","bid_price","bid_amount"]
[1749226006300,2.83941,2519.2,2519.0,3.2078]
[1749226006499,0.6607,2519.2,2519.1,0.79331]
[1749226006913,0.6607,2519.2,2518.9,0.0059622]
[1749226007111,0.79335,2519.0,2518.9,0.0059622]
[1749226008607,4.00115,2519.0,2518.9,0.0059622]
[1749226008806,9.65705,2519.0,2518.9,0.0059622]
[1749226009400,1.98353,2518.9,2518.2,1.3318]
[1749226009605,1.3681,2518.8,2518.5,0.79348]
[1749226009803,0.79347,2518.6,2518.5,0.79348]
[1749226010002,0.79346,2518.7,2518.6,0.79347]
[1749226010308,0.79351,2518.5,2518.4,0.0059622]
[1749226011208,2.16161,2518.5,2518.4,0.0059622]
[1749226012212,38.7863,2518.7,2518.6,0.79347]
[1749226012407,0.6785,2518.7,2518.6,0.79347]
[1749226012813,0.79347,2518.6,2518.5,0.6419]
[1749226013012,0.7935,2518.5,2518.4,0.0059622]
[1749226014616,2.1344,2518.5,2518.4,0.0059622]
[1749226014816,0.79349,2518.6,2518.5,0.79347]
[1749226015115,0.7935,2518.5,2518.4,0.7994822]
[1749226015315,4.969,2518.6,2518.5,0.7935]
[1749226015316,7.0208,2518.6,2518.5,0.7935]
[1749226015512,0.7935,2518.5,2518.4,0.7994722]
[1749226016215,7.0208,2518.6,2518.5,0.7935]
[1749226017214,0.7935,2518.5,2518.4,0.7994722]
[1749226017918,0.7935,2518.5,2518.4,0.0059622]
[1749226018317,2.124,2518.5,2518.4,0.7994922]
[1749226018618,2.124,2518.5,2518.4,0.0059622]
[1749226018919,3.02141005,2518.5,2518.4,0.0059622]
[1749226020219,26.78141005,2518.5,2518.4,0.7994922]
[1749226020820,26.78141005,2518.5,2518.4,0.0059622]
[1749226021219,26.78141005,2518.5,2518.4,0.7994922]
[1749226021422,5.86741005,2518.5,2518.4,0.7994922]
[1749226021719,6.66091005,2518.5,2518.4,0.7994922]
[1749226021916,5.86741005,2518.5,2518.4,0.7994922]
[1749226022118,0.89741005,2518.5,2518.4,0.7994922]
[1749226022523,1.69091005,2518.5,2518.4,0.7994922]
[1749226024718,1.69091005,2518.5,2518.4,0.0059622]
[1749226025623,3.00321005,2518.5,2518.4,0.0059622]
[1749226025829,3.00321005,2518.5,2518.4,0.7994922]
[1749226026020,3.07454356,2518.5,2518.4,0.7994922]
[1749226026422,3.07454356,2518.5,2518.4,0.0059622]
[1749226026622,3.07454356,2518.5,2518.4,0.7994922]
[1749226026823,3.07454356,2518.5,2518.4,0.0059622]
[1749226027326,3.07454356,2518.5,2518.4,0.00066178]
[1749226029425,21.80354356,2518.5,2518.4,0.00066178]
[1749226030525,26.80354356,2518.5,2518.4,0.00066178]
[1749226030721,8.07454356,2518.5,2518.4,0.00066178]
[1749226030926,0.79362,2518.2,2518.1,0.79361]
[1749226031119,0.07133351,2518.5,2518.1,3.2078]
[1749226031321,0.07133351,2518.5,2518.4,0.79353]
[1749226031520,0.07133351,2518.5,2518.2,0.6321]
[1749226031521,0.97603665,2518.5,2518.2,0.6321]
[1749226031721,1.69825314,2518.4,2518.3,0.79357]
[1749226032019,0.7936,2518.2,2518.1,0.0059622]
[1749226032222,1.69850407,2518.2,2518.1,0.0059622]
[1749226033225,20.46350407,2518.2,2518.1,0.0059622]
[1749226033422,21.78980407,2518.2,2518.1,0.0059622]
[1749226034531,1.98411,2518.1,2517.5,1.2798]
[1749226034825,0.79379,2517.6,2517.5,2.0736]
[1749226035225,1.69940546,2517.6,2517.5,2.0736]
[1749226035727,0.90561546,2517.6,2517.5,2.0736]
[1749226035931,1.69940546,2517.6,2517.5,2.0736]
[1749226036130,0.90561546,2517.6,2517.5,2.0736]
[1749226036332,1.69940546,2517.6,2517.5,2.0736]
[1749226036731,0.90561546,2517.6,2517.5,2.0736]
[1749226036932,0.9053113,2517.6,2517.5,2.07362]
[1749226037827,1.6991013,2517.6,2517.5,1.2798]
[1749226038430,0.79385,2517.4,2517.3,0.0059622]
[1749226038728,1.6991613,2517.4,2517.3,0.0059622]
[1749226039727,2.01657503,2517.4,2517.3,0.0059622]
[1749226040026,3.29127503,2517.4,2517.3,0.00072058]
[1749226040530,8.29127503,2517.4,2517.3,0.00072058]
[1749226041331,0.79401,2516.9,2516.8,0.79403]
[1749226041532,6.7133213,2516.9,2516.8,0.79403]
[1749226041729,4.62856,2517.1,2516.6,5.87886]
[1749226041933,4.62856,2517.1,2517.0,0.79398]
[1749226042135,26.0662713,2517.1,2517.0,0.79398]
[1749226042435,26.0662813,2517.1,2517.0,0.79398]
[1749226042638,1.5293113,2517.1,2517.0,0.79398]
[1749226042835,24.6435113,2517.1,2517.0,0.79398]
[1749226043029,25.4374513,2517.1,2517.0,0.79398]
[1749226043230,24.6435113,2517.1,2516.8,0.0059622]
[1749226043429,0.79401,2516.9,2516.8,0.0059622]
[1749226043936,0.79414,2516.6,2516.5,0.79412]
[1749226044138,5.80914,2516.6,2516.5,0.79412]
[1749226045031,0.79416,2516.4,2516.3,0.00397479]
[1749226045342,19.52716,2516.4,2516.3,0.00397479]
[1749226045830,24.27752389,2516.4,2516.3,0.00397479]
[1749226046336,24.27752389,2516.4,2516.3,1e-08]
[1749226046938,23.37656,2516.4,2516.3,1e-08]
[1749226047139,24.26032247,2516.4,2516.3,1e-08]
[1749226047334,23.37656,2516.4,2516.3,1e-08]
[1749226048239,24.25812573,2516.4,2516.3,1e-08]
[1749226048537,23.37656,2516.4,2516.3,1e-08]
[1749226052634,23.37656,2516.4,2515.4,7.88619]
[1749226052635,32.43223504,2516.4,2515.4,0.79447]
[1749226052832,3.2078,2516.0,2515.3,1.98628]
[1749226053036,3.2078,2516.0,2515.3,1.98629]
[1749226053235,3.2078,2516.0,2515.9,0.79432]
[1749226053236,21.9488,2516.0,2515.9,0.79432]
[1749226053439,26.9648,2516.0,2515.9,0.79432]
[1749226053742,27.75909,2516.0,2515.9,0.79432]
[1749226054336,27.75909,2516.0,2515.8,1.3198]
[1749226054337,0.79432,2515.9,2515.8,2.11413]
[1749226054643,27.75911,2516.0,2515.9,0.79432]
[1749226054845,0.79432,2515.9,2515.8,2.11412]
[1749226055536,0.79432,2515.9,2515.8,2.11415]
[1749226055738,0.79432,2515.9,2515.8,1.3198]
[1749226055936,0.79442,2515.6,2515.5,5.9]
[1749226056240,0.79442,2515.6,2515.5,0.79445]
[1749226056442,3.2078,2515.7,2515.4,1.3061]
[1749226056936,4.00221,2515.7,2515.6,0.79442]
[1749226059237,34.9059622,2516.2,2516.1,0.79426]
[1749226059444,0.79431,2516.0,2515.9,0.79431]
[1749226059940,0.79432,2515.9,2515.8,2.16353]
[1749226060138,3.2078,2515.9,2515.8,2.16353]
[1749226060341,3.2078,2515.9,2515.5,7.88612]
[1749226060640,3.2078,2515.9,2515.6,1.3692]
[1749226060847,0.79441,2515.7,2515.6,0.7944]
[1749226061345,4.999,2515.8,2515.7,0.79439]
[1749226061548,5.79335,2515.8,2515.7,0.79439]
[1749226061938,0.79435,2515.8,2515.7,0.79439]
[1749226062138,24.49235,2515.8,2515.7,0.79439]
[1749226063644,23.698,2515.8,2515.7,0.79439]
[1749226064253,24.47735,2515.8,2515.7,0.79439]
[1749226065846,25.36816609,2515.8,2515.7,0.79439]
[1749226066145,24.47735,2515.8,2515.7,0.79439]
[1749226066554,25.36870262,2515.8,2515.7,0.79439]
[1749226066851,0.79444,2515.6,2515.5,0.79443]
[1749226067746,1.98613,2515.5,2515.2,5.9]
[1749226067942,0.79456,2515.2,2515.1,0.79454]
[1749226068146,4.00237,2515.2,2515.1,0.79456]
[1749226068449,3.2078,2515.2,2515.1,0.79456]
[1749226068752,4.10050014,2515.2,2515.1,0.79456]
[1749226069954,4.89504014,2515.2,2515.1,0.79456]
[1749226070152,4.10050014,2515.2,2515.1,0.79456]
[1749226070353,4.89504014,2515.2,2515.1,0.79456]
[1749226071357,4.10050014,2515.2,2515.1,0.79456]
[1749226071859,5.79436,2515.8,2515.7,0.79435]
[1749226072056,0.89353793,2515.8,2515.7,0.40686666]
[1749226073054,0.0059622,2516.2,2516.1,0.79426]
[1749226073855,0.0059622,2516.2,2516.1,7.69306]
[1749226074152,5.0,2517.1,2516.6,1.98526]
[1749226074359,0.79399,2517.0,2516.9,0.79398]
[1749226074560,0.79404,2516.8,2516.7,2.06135]
[1749226074950,0.79403,2516.9,2516.7,2.06135]
[1749226075146,5.0059622,2517.1,2516.5,3.2078]
[1749226075348,0.7941,2516.6,2516.5,4.00192]
[1749226075548,5.0,2516.7,2516.6,0.7941]
[1749226076360,5.79407,2516.7,2516.5,4.00192]
[1749226076559,5.0,2516.7,2516.6,0.7941]
[1749226078558,5.79407,2516.7,2516.4,0.6326]
[1749226078766,0.79413,2516.6,2516.4,0.6326]
[1749226079069,0.79413,2516.6,2516.5,0.79413]
[1749226079258,0.79417,2516.4,2516.3,0.79419]
[1749226079866,19.47215,2516.5,2516.3,0.79419]
[1749226080364,18.678,2516.5,2516.4,0.79417]
[1749226080663,19.47213,2516.5,2516.4,0.79417]
[1749226081260,19.47214,2516.5,2516.4,0.79417]
[1749226081460,19.47214,2516.5,2516.1,0.6326]
[1749226081461,18.678,2516.5,2516.1,0.6326]
[1749226081657,19.9458,2516.5,2516.4,0.79417]
[1749226081862,18.678,2516.5,2516.4,0.79417]
[1749226082361,1.45161,2516.6,2516.5,0.79413]
[1749226082667,0.79421,2516.3,2516.2,0.79422]
[1749226082864,5.79321,2516.3,2516.2,0.79422]
[1749226083063,0.79423,2516.2,2516.1,0.6326]
[1749226083364,4.999,2516.3,2515.9,0.80027001]
[1749226083365,5.6402,2516.3,2515.9,0.00596001]
[1749226083560,5.6402,2516.3,2516.2,0.79423]
[1749226083561,0.6412,2516.3,2516.2,0.79423]
[1749226083766,24.2962,2516.3,2516.2,0.79423]
[1749226084361,25.0904,2516.3,2516.2,0.79423]
[1749226084562,24.2962,2516.3,2516.1,0.79423]
[1749226084773,0.79424,2516.2,2516.1,0.79423]
[1749226085067,26.40861,2516.3,2516.2,0.79423]
[1749226085270,27.29731868,2516.3,2516.2,0.79423]
[1749226085665,26.40861,2516.3,2516.2,0.79423]
[1749226085875,0.79425,2516.2,2516.1,0.79424]
[1749226086668,25.6144,2516.3,2515.9,1.29796001]
[1749226086865,0.79427,2516.1,2516.0,0.79425]
[1749226087068,0.79425,2516.2,2516.1,0.79424]
[1749226087870,0.79429,2516.1,2516.0,0.79427]
[1749226088064,1.3552,2516.2,2515.9,0.00596001]
[1749226088264,0.79429,2516.1,2516.0,0.79427]
[1749226088572,2.14946,2516.2,2516.1,0.79426]
[1749226088768,1.3552,2516.2,2516.1,0.79426]
[1749226088967,24.2712,2516.3,2516.2,0.79423]
[1749226089167,25.95407391,2516.3,2516.2,0.79423]
[1749226089367,27.30927391,2516.3,2516.2,0.79423]
[1749226089570,0.88866391,2516.3,2516.2,0.79423]
[1749226089772,24.51266391,2516.3,2516.2,0.79423]
[1749226090173,23.62,2516.3,2516.2,0.79423]
[1749226091074,23.579,2516.4,2516.1,1.98565]
[1749226091270,3.2078,2516.7,2516.6,0.7941]
[1749226093275,2.1029322,2517.1,2517.0,0.79398]
[1749226093276,4.9539622,2517.1,2517.0,0.79398]
[1749226093472,0.0059622,2517.1,2517.0,0.79398]
[1749226094170,2.2e-06,2517.1,2517.0,9.62898]
[1749226094576,2.2e-06,2517.1,2517.0,10.99378]
[1749226099185,0.07133571,2517.1,2517.0,10.99378]
[1749226099482,0.07133571,2517.1,2516.5,2.65009]
[1749226099678,5.741,2517.0,2516.9,0.79398]
[1749226099878,5.6202,2517.0,2516.9,0.79398]
[1749226100078,6.41418,2517.0,2516.9,0.79398]
[1749226100582,24.2552,2517.0,2516.9,0.79398]
[1749226101681,25.04918,2517.0,2516.9,0.79398]
[1749226101982,0.79404,2516.9,2516.8,0.79402]
[1749226102283,0.79406,2516.8,2516.7,0.79402]
[1749226102581,0.79409,2516.7,2516.6,0.79407]
[1749226102786,2.15358,2516.8,2516.7,0.79407]
[1749226103180,1.3595,2516.8,2516.7,0.79407]
[1749226103485,3.2078,2516.9,2516.8,0.79404]
[1749226104178,4.00181,2516.9,2516.8,0.79404]
[1749226104579,4.00181,2516.9,2516.7,0.79404]
[1749226104580,0.79406,2516.8,2516.7,0.79404]
[1749226104883,2.17096,2516.8,2516.7,0.79404]
[1749226106584,1.3769,2516.8,2516.7,0.79404]
[1749226106784,2.17094,2516.8,2516.7,0.79404]
[1749226107077,1.3769,2516.8,2516.7,0.79404]
[1749226107681,0.79411,2516.6,2516.3,1.9855]
[1749226107887,5.6211,2516.5,2516.4,0.79417]
[1749226108585,21.8288,2516.6,2516.5,0.79413]
[1749226108782,26.7718,2516.6,2516.5,0.79413]
[1749226108986,23.564,2516.6,2516.5,0.79413]
[1749226110086,24.3581,2516.6,2516.5,0.79413]
[1749226110587,23.564,2516.6,2516.5,0.79413]
[1749226111688,24.3581,2516.6,2516.5,0.79413]
[1749226111885,23.564,2516.6,2516.2,1.98557]
[1749226112085,0.6779,2516.5,2516.4,0.79417]
[1749226112290,5.6249,2516.5,2516.4,0.79417]
[1749226112691,6.41903,2516.5,2516.4,0.79417]
[1749226112887,5.6249,2516.5,2516.1,0.6937]
[1749226113086,4.4681,2516.4,2516.3,0.7942]
[1749226113282,3.2078,2516.4,2516.3,0.7942]
[1749226114390,5.6249,2516.5,2516.4,0.79417]
[1749226114694,0.6779,2516.5,2516.4,0.79417]
[1749226114889,5.6249,2516.5,2516.4,0.79417]
[1749226115285,0.6779,2516.5,2516.4,0.79417]
[1749226115590,4.947,2516.5,2516.4,0.79417]
[1749226115984,5.74113,2516.5,2516.4,0.79417]
[1749226117386,5.81246351,2516.5,2516.4,0.79417]
[1749226118694,5.01833351,2516.5,2516.4,0.79417]
[1749226119594,4.947,2516.5,2516.4,0.79417]
[1749226120596,0.79407,2516.8,2516.7,0.79404]
[1749226120887,1.68961777,2516.8,2516.7,0.49609729]
[1749226121289,2.94081777,2516.8,2516.7,0.49609729]
[1749226121689,0.79414,2516.6,2516.5,0.7941]
[1749226122091,1.68948742,2516.6,2516.5,0.7941]
[1749226122294,2.99698742,2516.6,2516.5,0.7941]
[1749226124488,2.99691149,2516.6,2516.5,0.7941]
[1749226125599,3.64251149,2516.6,2516.5,0.7941]
[1749226125799,0.79416,2516.5,2516.4,0.79414]
[1749226125996,8.64853149,2516.5,2516.4,0.79414]
[1749226126198,0.7942,2516.4,2516.3,0.79418]
[1749226126500,0.89527149,2516.4,2516.3,0.79418]
[1749226128094,1.68944149,2516.4,2516.3,0.79418]
[1749226128299,0.89527149,2516.4,2516.3,0.79418]
[1749226128497,4.10307149,2516.4,2516.1,2.67932]
[1749226128694,3.2078,2516.4,2516.1,0.6937]
[1749226128995,0.79426,2516.2,2516.1,0.79424]
[1749226129197,1.69126935,2516.2,2516.1,0.79424]
[1749226129398,3.03646935,2516.2,2516.1,0.79424]
[1749226130198,2.24220935,2516.2,2516.1,0.79424]
[1749226131099,0.89700935,2516.2,2516.1,0.79424]
[1749226131302,1.69123935,2516.2,2516.1,0.79424]
[1749226131997,0.89700935,2516.2,2516.1,0.79424]
[1749226132705,1.69123935,2516.2,2516.1,0.79424]
[1749226132900,1.69123935,2516.2,2515.9,0.00596001]
[1749226132901,0.79429,2516.0,2515.9,0.00596001]
[1749226133106,6.62529935,2516.0,2515.9,0.00596001]
[1749226133306,6.62529935,2516.0,2515.9,0.80028001]
[1749226133605,7.83750935,2516.0,2515.9,0.80028001]
[1749226133800,8.63179935,2516.0,2515.9,0.80028001]
[1749226134001,8.63179935,2516.0,2515.9,0.00596001]
[1749226134198,8.63179935,2516.0,2515.4,1.98621]
[1749226134199,14.82325935,2516.0,2515.4,1.98621]
[1749226134401,3.2078,2515.7,2515.6,0.79442]
[1749226134603,4.10480935,2515.7,2515.6,0.79442]
[1749226135607,4.74700935,2515.7,2515.6,0.79442]
[1749226137910,5.83200935,2515.7,2515.6,0.79442]
[1749226138420,0.89700935,2515.7,2515.6,0.79442]
[1749226139710,5.83200935,2515.7,2515.6,0.79442]
[1749226139914,11.00890935,2515.7,2515.6,0.79442]
[1749226140715,0.79443,2515.6,2515.5,0.79443]
[1749226140931,2.99203935,2515.6,2515.5,0.79443]
[1749226141114,2.19760935,2515.6,2515.5,0.79443]
[1749226141422,0.89700935,2515.6,2515.5,0.79443]
[1749226141623,24.39300935,2515.6,2515.5,0.79443]
[1749226141815,4.935,2515.9,2515.7,1.98595]
[1749226142018,4.935,2515.9,2515.8,0.79435]
[1749226142216,4.935,2515.9,2515.8,1.48885]
[1749226143021,0.7943,2516.0,2515.9,0.79432]
[1749226143224,5.7293,2516.0,2515.9,0.79432]
[1749226143626,4.935,2516.0,2515.9,0.79432]
[1749226144116,3.2078,2516.1,2516.0,0.79429]
[1749226144321,26.7038,2516.1,2516.0,0.79429]
[1749226144525,0.79432,2515.9,2515.8,0.6945]
[1749226144721,0.79432,2516.0,2515.9,0.79431]
[1749226144920,28.0775,2516.1,2515.8,0.6945]
[1749226144921,28.87178,2516.1,2516.0,0.79429]
[1749226145122,0.79431,2516.0,2515.9,0.79429]
[1749226145327,28.87178,2516.1,2516.0,0.79429]
[1749226147728,28.0775,2516.1,2516.0,0.79429]
[1749226148224,28.87176,2516.1,2516.0,0.79429]
[1749226148930,24.10733351,2516.3,2516.2,0.79423]
[1749226149725,24.90153351,2516.3,2516.2,0.79423]
[1749226150030,24.036,2516.3,2516.2,0.79423]
[1749226150219,28.971,2516.3,2516.2,0.79423]
[1749226150729,29.7652,2516.3,2516.2,0.79423]
[1749226151330,28.971,2516.3,2516.2,0.79423]
[1749226151631,29.7652,2516.3,2516.2,0.79423]
[1749226151830,28.971,2516.3,2516.2,0.79423]
[1749226152130,0.79439,2515.8,2515.4,1.9921722]
[1749226152323,3.2078,2515.8,2515.7,0.79439]
[1749226152726,26.6808,2515.8,2515.7,0.79439]
[1749226152925,3.2078,2515.8,2515.7,0.79439]
[1749226153128,4.5294,2516.2,2516.1,0.79426]
[1749226153335,8.1208,2516.2,2516.1,0.79426]
[1749226153830,9.82284959,2516.2,2516.1,0.79426]
[1749226154423,4.11561959,2516.2,2516.1,0.79426]
[1749226154624,27.59361959,2516.2,2516.1,0.79426]
[1749226154833,0.90781959,2516.2,2516.1,0.79426]
[1749226155228,1.70204959,2516.2,2516.1,0.79426]
[1749226155430,0.90781959,2516.2,2516.1,0.79426]
[1749226156634,1.70204959,2516.2,2516.1,0.79426]
[1749226156834,4.11561959,2516.2,2515.8,2.67235]
[1749226157034,0.79432,2516.0,2515.9,0.7943]
[1749226157228,0.79432,2515.9,2515.8,1.48084]
[1749226157428,1.68454942,2515.9,2515.8,1.48084]
[1749226157934,0.89022942,2515.9,2515.8,1.48084]
[1749226158137,0.96156293,2515.9,2515.8,1.48084]
[1749226159336,4.16936293,2515.9,2515.8,1.48084]
[1749226160829,0.07133351,2515.9,2515.8,1.48084]
[1749226161029,5.70727,2516.1,2516.0,0.79429]
[1749226161236,0.89113336,2516.1,2516.0,0.79429]
[1749226161434,4.00198,2516.4,2516.3,0.7942]
[1749226161735,4.89304384,2516.4,2516.3,0.7942]
[1749226162126,9.80605384,2516.4,2516.3,0.7942]
[1749226162636,10.99732384,2516.4,2515.8,3.27344]
[1749226162837,0.79427,2516.2,2516.1,0.79423]
[1749226163031,0.79429,2516.1,2516.0,0.79427]
[1749226163239,1.66303527,2516.1,2516.0,0.79427]
[1749226163638,0.79429,2516.0,2515.9,1.42991]
[1749226163838,1.66303527,2516.0,2515.9,1.42991]
[1749226164041,0.79432,2515.9,2515.8,0.79434]
[1749226164235,0.79438,2515.8,2515.7,0.79439]
[1749226164540,4.87092527,2515.8,2515.7,0.79439]
[1749226164737,6.19422527,2515.8,2515.7,0.79439]
[1749226165040,24.75222527,2515.8,2515.7,0.79439]
[1749226165742,23.95784527,2515.8,2515.7,0.79439]
[1749226166534,24.75699936,2515.8,2515.7,0.79439]
[1749226166741,24.75701936,2515.8,2515.7,0.79439]
[1749226167242,29.67101936,2515.8,2515.7,0.79439]
[1749226167644,0.79442,2515.7,2515.6,0.79441]
[1749226167943,0.79442,2515.6,2515.5,0.79445]
[1749226168141,1.66796936,2515.6,2515.5,0.79445]
[1749226168343,2.94236936,2515.6,2515.5,0.79445]
[1749226168642,0.79445,2515.5,2515.4,0.0059622]
[1749226168838,2.06884,2515.6,2515.5,0.79445]
[1749226169047,2.94177382,2515.6,2515.5,0.79445]
[1749226169741,0.79445,2515.5,2515.4,0.8004222]
[1749226169938,6.14958382,2515.5,2515.4,0.0059622]
[1749226170440,6.14958382,2515.5,2515.4,0.00082165]
[1749226171045,41.04958382,2515.5,2515.4,0.00082165]
[1749226171438,0.79458,2515.1,2515.0,0.79458]
[1749226171642,0.79461,2515.0,2514.9,1.46131]
[1749226171944,0.87293382,2515.0,2514.9,1.46131]
[1749226172345,1.66754382,2515.0,2514.9,1.46131]
[1749226172542,0.87293382,2515.0,2514.9,1.46131]
[1749226172843,1.66754382,2515.0,2514.9,1.46131]
[1749226173044,0.87293382,2515.0,2514.9,0.79464]
[1749226173343,1.66754382,2515.0,2514.9,0.79464]
[1749226174248,0.87293382,2515.0,2514.9,0.79464]
[1749226174639,1.66754382,2515.0,2514.9,0.79464]
[1749226175040,25.14454382,2515.0,2514.9,0.79464]
[1749226176038,24.34993382,2515.0,2514.5,2.61521]
[1749226176238,4.00251,2514.8,2514.7,0.79467]
[1749226176745,0.79473,2514.7,2514.6,0.79471]
[1749226177445,0.79473,2514.6,2514.5,0.79474]
[1749226177651,2.74222,2514.7,2514.6,0.79473]
[1749226177843,3.61115537,2514.7,2514.6,0.79473]
[1749226179242,2.74222,2514.7,2514.6,0.79473]
[1749226179444,2.74221,2514.7,2514.6,0.79473]
[1749226179743,24.1123,2514.7,2514.6,0.79473]
[1749226180152,3.2078,2514.8,2514.7,0.7947]
[1749226180550,8.1228,2514.8,2514.7,0.7947]
[1749226180747,24.047,2515.1,2515.0,0.79461]
[1749226180949,47.526,2515.1,2515.0,0.79461]
[1749226181247,24.047,2515.1,2515.0,0.79461]
[1749226181448,38.1078,2515.5,2515.4,0.79448]
[1749226181648,24.27445,2515.5,2515.4,0.79448]
[1749226181848,0.79448,2515.4,2515.3,0.6435]
[1749226182152,0.79448,2515.4,2515.3,1.43801]
[1749226182342,0.79448,2515.4,2515.3,0.6435]
[1749226182543,45.00894,2515.5,2515.1,0.79455]
[1749226182741,0.79453,2515.3,2515.2,0.79453]
[1749226184544,0.79458,2515.1,2515.0,1.4381]
[1749226184751,4.914,2515.1,2515.0,1.4381]
[1749226184951,5.70858,2515.1,2515.0,1.4381]
[1749226185953,4.914,2515.1,2515.0,1.4381]
[1749226186157,5.70858,2515.1,2515.0,1.4381]
[1749226186455,4.914,2515.1,2515.0,1.4381]
[1749226186755,5.70858,2515.1,2515.0,1.4381]
[1749226187550,4.914,2515.1,2515.0,1.4381]
[1749226188753,5.70858,2515.1,2515.0,1.4381]
[1749226188953,5.70858,2515.1,2515.0,0.7946]
[1749226189559,6.3034,2515.1,2515.0,0.7946]
[1749226190263,7.09798,2515.1,2515.0,0.7946]
[1749226190465,0.79464,2515.0,2514.9,0.79462]
[1749226190961,0.79464,2514.9,2514.8,6.69464]
[1749226191266,20.02584,2514.9,2514.8,6.69464]
[1749226191560,23.23364,2514.9,2514.8,6.69464]
[1749226191758,23.23364,2514.9,2514.8,5.9]
[1749226191964,24.10765099,2514.9,2514.8,5.9]
[1749226192960,24.10765099,2514.9,2514.8,6.69467]
[1749226193163,24.10765099,2514.9,2514.8,0.79467]
[1749226196374,0.7947,2514.8,2514.7,0.79468]
[1749226196570,0.7947,2514.8,2514.5,1.98692]
[1749226196571,0.87401099,2514.8,2514.5,1.98691]
[1749226196769,4.915,2514.7,2514.6,0.79473]
[1749226196976,5.7097,2514.7,2514.6,0.79473]
[1749226197175,4.915,2514.7,2514.6,0.49653567]
[1749226197878,6.59236544,2514.7,2514.6,0.49653567]
[1749226198070,5.7097,2514.7,2514.6,0.49653567]
[1749226198379,6.592581,2514.7,2514.6,0.49653567]
[1749226199578,0.882881,2514.7,2514.6,0.49653567]
[1749226202576,0.79473,2514.6,2514.5,6.69474]
[1749226202776,1.677611,2514.6,2514.5,6.69474]
[1749226203579,0.882881,2514.6,2514.5,6.69474]
[1749226204079,1.677611,2514.6,2514.5,6.69474]
[1749226204380,1.677611,2514.6,2514.5,5.9]
[1749226205481,1.677611,2514.6,2514.5,6.69477]
[1749226206075,1.677611,2514.6,2514.5,5.9]
[1749226206276,0.79477,2514.5,2514.4,1.43809]
[1749226206474,1.677651,2514.5,2514.4,1.43809]
[1749226207074,2.359151,2514.5,2514.4,1.43809]
[1749226208276,0.7948,2514.4,2514.3,6.69482]
[1749226208471,6.592681,2514.4,2514.3,6.69482]
[1749226208978,7.784961,2514.4,2514.1,0.79486]
[1749226209177,0.79488,2514.2,2514.1,0.79486]
[1749226209377,0.79492,2514.0,2513.9,7.34704]
[1749226209577,0.79492,2514.0,2513.8,1.2956]
[1749226209578,0.79502,2513.7,2513.6,6.5945]
[1749226209783,3.2078,2513.7,2513.6,7.2466]
[1749226209981,4.00282,2513.7,2513.6,7.2466]
[1749226210282,4.88511768,2513.7,2513.6,6.5521]
[1749226210484,23.45011768,2513.7,2513.6,0.6521]
[1749226210677,22.65509768,2513.7,2513.3,6.5521]
[1749226210877,5.5537,2513.6,2513.5,0.79507]
[1749226211385,5.5537,2513.6,2513.5,0.79508]
[1749226211781,6.34875,2513.6,2513.5,0.79508]
[1749226211984,0.79511,2513.4,2513.3,1.44723]
[1749226212187,0.79511,2513.5,2513.4,0.79508]
[1749226212681,0.79511,2513.4,2513.3,1.44723]
[1749226213383,0.79511,2513.5,2513.4,0.79509]
[1749226213584,0.79511,2513.4,2513.3,1.44722]
[1749226214478,0.7951,2513.5,2513.4,0.79509]
[1749226215584,0.79514,2513.3,2512.8,7.88821]
[1749226215784,5.70919,2513.2,2513.1,0.79521]
[1749226216589,0.79524,2513.1,2513.0,0.79524]
[1749226216789,19.36424,2513.1,2513.0,0.79524]
[1749226216986,0.79524,2513.0,2512.9,1.43145]
[1749226217189,18.569,2513.1,2512.8,5.9]
[1749226217483,0.7953,2512.9,2512.8,0.79527]
[1749226217684,3.8916622,2513.1,2513.0,0.79524]
[1749226217985,27.3746622,2513.1,2513.0,0.79524]
[1749226218187,27.3746622,2513.1,2512.5,7.1592]
[1749226218382,2.77966,2513.0,2512.9,0.79527]
[1749226219486,0.79541,2512.6,2512.5,0.79537]
[1749226219790,4.914,2512.7,2512.6,0.79537]
[1749226220179,3.2078,2512.8,2512.7,0.79533]
[1749226220384,3.8845,2513.0,2512.9,0.79527]
[1749226220691,28.16374,2513.0,2512.9,0.79527]
[1749226220889,28.16374,2513.0,2511.8,3.2078]
[1749226220890,57.6946,2513.0,2511.8,3.2078]
[1749226221190,57.6946,2513.0,2510.4,47.72517769]
[1749226221191,3.2078,2511.9,2511.5,0.6575]
[1749226221484,3.2078,2511.6,2511.5,1.4532]
[1749226221692,4.00348,2511.6,2511.5,0.6575]
[1749226221992,0.79572,2511.5,2511.3,1.45106]
[1749226222186,4.915,2511.4,2510.8,1.98985]
[1749226222387,4.915,2511.4,2511.3,0.79578]
[1749226222592,3.2078,2511.6,2510.9,3.2078]
[1749226222890,23.486,2511.5,2511.4,0.79575]
[1749226223485,24.28171,2511.5,2511.4,0.79575]
[1749226224292,3.2078,2511.6,2511.5,0.79571]
[1749226224486,24.2925922,2511.8,2511.7,0.79565]
[1749226224684,23.4969622,2511.8,2511.7,0.79565]
[1749226224889,0.79566,2511.7,2511.4,1.3499]
[1749226225081,24.7845622,2511.8,2511.4,0.6909]
[1749226225293,4.5956,2511.7,2511.4,0.79573]
[1749226225493,0.7957,2511.6,2511.4,0.79573]
[1749226225794,1.3878,2511.6,2511.0,2.7283]
[1749226225990,0.79577,2511.4,2511.0,2.7283]
[1749226226293,0.79572,2511.5,2511.0,2.7283]
[1749226226488,2.18351,2511.6,2511.4,0.79575]
[1749226226697,1.3878,2511.6,2511.4,0.79575]
[1749226226890,1.3878,2511.6,2511.0,4.71795]
[1749226227092,3.2078,2511.4,2511.0,2.7283]